bitfinex-derivatives/quotes_BTCF0:USTF0_20241116
["timestamp","ask_amount","ask_price","bid_price","bid_amount"]
[1731787451279,0.07936,91172.0,91170.0,0.054812]
[1731787451601,0.07936,91172.0,91171.0,0.00891343]
[1731787452079,0.00087993,91174.0,91171.0,0.00891343]
[1731787452285,0.00087993,91174.0,91172.0,0.06372443]
[1731787452485,0.00087993,91174.0,91173.0,0.00891343]
[1731787452691,0.00087993,91174.0,91173.0,0.00993591]
[1731787452991,0.00087993,91174.0,91173.0,0.00891343]
[1731787453188,0.00087993,91174.0,91173.0,0.06372343]
[1731787454907,0.05568993,91174.0,91173.0,0.06372343]
[1731787455095,0.05568993,91174.0,91173.0,0.00993591]
[1731787455689,0.05568993,91174.0,91173.0,0.00891343]
[1731787455894,0.05568993,91174.0,91173.0,0.00993577]
[1731787456087,0.05568993,91174.0,91173.0,0.00891343]
[1731787456489,0.05568993,91174.0,91173.0,0.00891316]
[1731787456992,0.47826243,91174.0,91173.0,0.00891316]
[1731787457599,0.64241552,91174.0,91173.0,0.00891316]
[1731787457986,0.47826243,91174.0,91173.0,0.00891316]
[1731787458188,0.73805741,91174.0,91173.0,0.00342814]
[1731787458495,0.054818,91160.0,91159.0,0.0051]
[1731787458694,0.054823,91152.0,91148.0,0.0051]
[1731787458898,0.054823,91152.0,91149.0,0.00102228]
[1731787458899,0.18607985,91152.0,91149.0,0.00102228]
[1731787459199,0.054823,91152.0,91149.0,0.00102228]
[1731787459395,0.18607985,91152.0,91149.0,0.00102228]
[1731787459600,0.44016,91160.0,91151.0,0.00266784]
[1731787459601,0.13125685,91154.0,91151.0,0.00266784]
[1731787459795,0.13125685,91154.0,91153.0,0.054822]
[1731787460098,0.13125685,91156.0,91154.0,0.054822]
[1731787460286,0.18607785,91155.0,91154.0,0.054822]
[1731787460487,0.054821,91155.0,91154.0,0.054822]
[1731787460686,0.13127586,91155.0,91154.0,0.054822]
[1731787460886,0.13127586,91157.0,91156.0,0.05482]
[1731787461085,0.18609567,91157.0,91156.0,0.05584296]
[1731787461291,0.05482,91157.0,91156.0,0.05482]
[1731787461697,0.18609567,91157.0,91156.0,0.05482]
[1731787461892,0.18609567,91157.0,91156.0,0.0558431]
[1731787462082,0.18609567,91157.0,91156.0,0.10972474]
[1731787462083,0.05482,91157.0,91156.0,0.10972474]
[1731787462498,0.18609567,91157.0,91156.0,0.10972474]
[1731787462898,0.18609567,91157.0,91156.0,0.05482]
[1731787463194,0.05482,91157.0,91156.0,0.05482]
[1731787464191,0.05482,91157.0,91156.0,0.10972474]
[1731787465592,0.13127567,91159.0,91158.0,0.054819]
[1731787465903,0.13127567,91160.0,91159.0,0.054819]
[1731787466202,0.13127567,91162.0,91159.0,0.05490474]
[1731787466401,0.13127567,91165.0,91161.0,0.0935325]
[1731787466590,0.13127567,91165.0,91164.0,0.054816]
[1731787466785,0.05481,91173.0,91166.0,0.054814]
[1731787466990,0.05481,91173.0,91166.0,0.10971874]
[1731787467189,0.05481,91173.0,91166.0,0.21941537]
[1731787467995,0.18609875,91173.0,91166.0,0.21941537]
[1731787468305,0.05481,91173.0,91166.0,0.22490046]
[1731787468505,0.05481,91173.0,91166.0,0.42137648]
[1731787468699,0.18609875,91173.0,91166.0,0.42173376]
[1731787468894,0.13216868,91174.0,91166.0,0.22490046]
[1731787469102,0.13216868,91174.0,91173.0,0.05481]
[1731787469103,0.00087993,91174.0,91173.0,0.05481]
[1731787469403,0.00087993,91174.0,91173.0,0.06029507]
[1731787470422,0.00087993,91174.0,91173.0,0.06372312]
[1731787470901,0.00087993,91174.0,91173.0,0.26054255]
[1731787471293,0.00087993,91174.0,91173.0,0.06372312]
[1731787471492,0.00087993,91174.0,91173.0,0.17340411]
[1731787472799,0.00087993,91174.0,91173.0,0.43587393]
[1731787472997,0.00087993,91174.0,91173.0,0.17340411]
[1731787473405,0.00087993,91174.0,91173.0,0.43578716]
[1731787474109,0.00087993,91174.0,91173.0,0.17340411]
[1731787474907,0.00087993,91174.0,91173.0,0.18711536]
[1731787475097,0.00087993,91174.0,91173.0,0.22933239]
[1731787475297,0.00087993,91174.0,91173.0,0.24304369]
[1731787475507,0.13217213,91174.0,91173.0,0.24304369]
[1731787475704,0.13217156,91174.0,91173.0,0.24304369]
[1731787476010,0.13217156,91174.0,91173.0,0.24202015]
[1731787476508,0.00087993,91174.0,91173.0,0.24202015]
[1731787476897,0.13137175,91175.0,91173.0,0.18721015]
[1731787477098,8.012e-05,91175.0,91174.0,0.07743442]
[1731787477300,8.012e-05,91175.0,91174.0,0.11965092]
[1731787477499,0.1313536,91175.0,91174.0,0.11965092]
[1731787478104,0.1313536,91175.0,91174.0,0.13336217]
[1731787478396,8.012e-05,91175.0,91174.0,0.23755688]
[1731787478697,8.012e-05,91175.0,91174.0,0.24201803]
[1731787478905,8.012e-05,91175.0,91174.0,0.24304099]
[1731787479210,8.012e-05,91175.0,91174.0,0.22830678]
[1731787479411,0.1313536,91175.0,91174.0,0.22830678]
[1731787479614,8.012e-05,91175.0,91174.0,0.22830678]
[1731787480714,0.13131671,91175.0,91174.0,0.22830678]
[1731787481422,8.012e-05,91175.0,91174.0,0.22830678]
[1731787482014,8.012e-05,91175.0,91174.0,0.42509343]
[1731787482207,8.012e-05,91175.0,91174.0,0.22830678]
[1731787482519,8.012e-05,91175.0,91174.0,0.24201788]
[1731787483716,8.012e-05,91175.0,91174.0,0.43861385]
[1731787484016,8.012e-05,91175.0,91174.0,0.42490275]
[1731787485215,8.012e-05,91175.0,91174.0,0.41599049]
[1731787485415,8.012e-05,91175.0,91174.0,0.22830686]
[1731787485616,8.012e-05,91175.0,91174.0,0.42490283]
[1731787486412,8.012e-05,91175.0,91174.0,0.22830686]
[1731787488515,8.012e-05,91175.0,91174.0,0.42490283]
[1731787488823,8.012e-05,91175.0,91174.0,0.47738145]
[1731787489119,8.012e-05,91175.0,91174.0,0.48629379]
[1731787489631,8.012e-05,91175.0,91174.0,0.28969782]
[1731787489814,8.012e-05,91175.0,91174.0,0.23479308]
[1731787490016,8.012e-05,91175.0,91174.0,0.43147296]
[1731787490420,8.012e-05,91175.0,91174.0,0.23479308]
[1731787491426,8.012e-05,91175.0,91174.0,0.28969782]
[1731787492726,8.012e-05,91175.0,91174.0,0.28969786]
[1731787493528,8.012e-05,91175.0,91174.0,0.65049786]
[1731787493822,0.00076792,91177.0,91176.0,0.054808]
[1731787494019,0.00076792,91177.0,91176.0,0.13233589]
[1731787494420,0.00076792,91177.0,91176.0,0.24201567]
[1731787494822,0.00076792,91177.0,91176.0,0.570603]
[1731787495223,0.00076792,91177.0,91176.0,0.86164884]
[1731787495425,0.00164581,91178.0,91176.0,0.47833363]
[1731787495730,0.00164581,91178.0,91177.0,0.69655073]
[1731787495928,0.00164581,91178.0,91177.0,0.4603037]
[1731787496535,0.00164581,91178.0,91177.0,0.86116634]
[1731787496831,0.00164581,91178.0,91177.0,0.56655279]
[1731787497130,0.00164581,91178.0,91177.0,0.23858498]
[1731787497432,0.1328824,91178.0,91177.0,0.23858498]
[1731787497727,0.1328824,91178.0,91177.0,0.43541053]
[1731787497932,0.1328824,91178.0,91177.0,0.2420125]
[1731787497933,0.00164581,91178.0,91177.0,0.2420125]
[1731787498128,0.1328824,91178.0,91177.0,0.43886132]
[1731787498321,0.1328824,91178.0,91177.0,0.2420125]
[1731787498525,0.13310097,91178.0,91177.0,0.2420125]
[1731787498722,0.00164581,91178.0,91177.0,0.2420125]
[1731787499829,0.00164581,91178.0,91177.0,0.23858498]
[1731787500034,0.00164581,91178.0,91177.0,0.24201249]
[1731787501228,0.00164581,91178.0,91177.0,0.29771765]
[1731787501922,0.00164581,91178.0,91177.0,0.29429014]
[1731787502533,0.00164581,91178.0,91177.0,0.23858498]
[1731787502836,0.05645281,91178.0,91177.0,0.1289082]
[1731787503330,0.22082757,91178.0,91177.0,0.12342366]
[1731787503631,0.22082757,91178.0,91177.0,0.11314058]
[1731787503831,0.05645281,91178.0,91177.0,0.11314058]
[1731787505338,0.05645281,91178.0,91177.0,0.11862503]
[1731787505735,0.054807,91178.0,91177.0,0.11862502]
[1731787507028,0.13150097,91181.0,91177.0,0.61420416]
[1731787507231,0.00129505,91191.0,91190.0,0.0548]
[1731787507446,0.0014646,91196.0,91192.0,0.054799]
[1731787507624,0.0014646,91196.0,91192.0,0.36790767]
[1731787507829,0.0014646,91196.0,91192.0,0.47756581]
[1731787508131,0.0014646,91196.0,91192.0,0.47413856]
[1731787508440,0.0014646,91196.0,91192.0,0.94672306]
[1731787508621,0.0014646,91196.0,91192.0,0.55345856]
[1731787508929,0.0014646,91196.0,91192.0,0.64695008]
[1731787509130,0.0014646,91196.0,91192.0,0.65722589]
[1731787509830,0.0014646,91196.0,91192.0,0.63178249]
[1731787510037,0.0014646,91196.0,91192.0,0.33101931]
[1731787510229,0.0014646,91196.0,91192.0,0.65848183]
[1731787510428,0.0014646,91196.0,91192.0,0.95925488]
[1731787510623,0.0014646,91196.0,91192.0,0.33101931]
[1731787510822,0.0014646,91196.0,91192.0,0.38592405]
[1731787511023,0.0014646,91196.0,91192.0,0.38592168]
[1731787511218,0.0014646,91196.0,91192.0,0.6864421]
[1731787511530,0.36200392,91207.0,91192.0,0.6864421]
[1731787511531,0.00120392,91207.0,91204.0,0.054791]
[1731787511836,0.00140646,91227.0,91192.0,1.07985692]
[1731787511837,0.00650646,91227.0,91211.0,0.054787]
[1731787512032,0.00140646,91227.0,91212.0,0.79126173]
[1731787512228,0.00140646,91227.0,91212.0,0.39884188]
[1731787512430,0.00140646,91227.0,91212.0,0.4482636]
[1731787512734,0.00140646,91227.0,91212.0,0.25759154]
[1731787512926,0.00140646,91227.0,91212.0,0.25416465]
[1731787513122,0.00140646,91227.0,91212.0,0.25759052]
[1731787513323,0.00140646,91227.0,91212.0,0.58431286]
[1731787513524,0.00140646,91227.0,91212.0,0.25759052]
[1731787514125,0.00140646,91227.0,91212.0,0.25770129]
[1731787514339,4e-08,91213.0,91212.0,0.25770129]
[1731787514538,4e-08,91213.0,91212.0,0.64090037]
[1731787514834,1e-08,91216.0,91213.0,0.32888]
[1731787515034,0.00140646,91227.0,91221.0,0.054781]
[1731787515332,0.00140646,91227.0,91223.0,0.05478]
[1731787515535,0.00140646,91227.0,91223.0,0.24129916]
[1731787515727,0.00140646,91227.0,91223.0,0.2962039]
[1731787515932,0.00140646,91227.0,91223.0,0.49171908]
[1731787516241,0.00140646,91227.0,91223.0,0.40582429]
[1731787516534,0.00140646,91227.0,91223.0,0.32650429]
[1731787516736,0.00140646,91227.0,91223.0,0.31622252]
[1731787517122,0.00140646,91227.0,91223.0,0.26131778]
[1731787518031,0.00140646,91227.0,91223.0,0.2715951]
[1731787518544,0.00140646,91227.0,91223.0,0.32649984]
[1731787520339,0.00140646,91227.0,91223.0,0.26829445]
[1731787520543,0.00140646,91227.0,91226.0,0.054778]
[1731787520734,0.00140646,91227.0,91226.0,0.07396177]
[1731787520930,0.00162325,91233.0,91232.0,0.054775]
[1731787521131,0.00162325,91233.0,91232.0,0.15717297]
[1731787521327,0.00162325,91233.0,91232.0,0.21207771]
[1731787522043,0.00162325,91233.0,91222.0,0.07928]
[1731787522341,0.05639825,91233.0,91230.0,0.054776]
[1731787522643,0.054777,91229.0,91226.0,0.054778]
[1731787522947,0.3608,91231.0,91217.0,0.0051]
[1731787523131,0.3608,91218.0,91212.0,0.00521077]
[1731787523441,0.3608,91218.0,91212.0,0.05489677]
[1731787523442,0.0319,91217.0,91212.0,0.05489677]
[1731787523747,0.054786,91214.0,91212.0,0.05489677]
[1731787523933,0.0313,91213.0,91212.0,0.05489677]
[1731787525932,0.0313,91213.0,91212.0,0.00011077]
[1731787526129,0.50849752,91213.0,91212.0,0.00011077]
[1731787526529,0.054791,91205.0,91204.0,0.0051]
[1731787526845,0.054795,91198.0,91197.0,0.0051]
[1731787527054,0.054798,91193.0,91190.0,0.0051]
[1731787527231,0.415598,91193.0,91185.0,0.054803]
[1731787527546,0.415598,91193.0,91192.0,0.00169185]
[1731787527729,0.054803,91185.0,91184.0,0.0051]
[1731787527934,0.054805,91182.0,91179.0,0.054806]
[1731787528143,0.3608,91185.0,91179.0,0.054806]
[1731787528144,0.054806,91181.0,91179.0,0.054806]
[1731787529040,0.3608,91185.0,91176.0,0.09349152]
[1731787529239,0.3608,91185.0,91183.0,0.054804]
[1731787531543,0.3608,91185.0,91177.0,0.054808]
[1731787531544,0.054807,91179.0,91177.0,0.054808]
[1731787532144,0.054807,91179.0,91178.0,0.00548446]
[1731787532350,0.14829852,91179.0,91178.0,0.00548446]
[1731787532531,0.054811,91171.0,91170.0,0.1]
[1731787532732,0.054811,91171.0,91170.0,0.1483]
[1731787534129,0.054811,91171.0,91170.0,0.15172827]
[1731787534645,0.054811,91171.0,91170.0,0.15721341]
[1731787536650,0.05492427,91171.0,91170.0,0.15721341]
[1731787536841,0.05492427,91171.0,91170.0,0.15172827]
[1731787536842,0.41396427,91171.0,91170.0,0.15172827]
[1731787537037,0.41396427,91171.0,91159.0,0.0051]
[1731787537038,0.054818,91160.0,91159.0,0.0051]
[1731787537242,0.054821,91155.0,91153.0,0.054822]
[1731787537449,0.054821,91155.0,91154.0,0.00548577]
[1731787537748,0.054821,91155.0,91154.0,0.11517037]
[1731787537932,0.054821,91155.0,91154.0,0.1096846]
[1731787538135,0.054821,91155.0,91154.0,0.11517037]
[1731787538549,0.054821,91155.0,91154.0,0.1096846]
[1731787538740,0.054821,91155.0,91154.0,0.16453999]
[1731787538939,0.054821,91155.0,91154.0,0.1096846]
[1731787539151,0.054823,91152.0,91151.0,0.031]
[1731787539339,0.3608,91160.0,91151.0,0.04471444]
[1731787539649,0.054822,91153.0,91152.0,0.18372707]
[1731787539849,0.054822,91153.0,91152.0,0.07402322]
[1731787540150,0.3608,91160.0,91152.0,0.12547426]
[1731787540348,0.054819,91159.0,91158.0,0.054819]
[1731787543941,0.415619,91159.0,91158.0,0.054819]
[1731787544655,0.054819,91159.0,91151.0,0.031]
[1731787544837,0.07968,91162.0,91153.0,0.054822]
[1731787545043,0.054821,91156.0,91153.0,0.054822]
[1731787545341,0.054822,91153.0,91151.0,0.05485539]
[1731787545546,0.3608,91152.0,91151.0,0.05485539]
[1731787546448,0.054823,91151.0,91149.0,0.00164554]
[1731787548235,0.054823,91151.0,91149.0,0.05646954]
[1731787549448,0.054826,91147.0,91143.0,0.059928]
[1731787549759,0.054826,91147.0,91143.0,0.054828]
[1731787550555,0.054826,91147.0,91141.0,0.0303]
[1731787550753,0.054826,91147.0,91144.0,0.054827]
[1731787551051,0.054826,91147.0,91145.0,0.054827]
[1731787553640,0.00060001,91152.0,91150.0,0.054824]
[1731787553851,0.0812,91155.0,91153.0,0.054822]
[1731787554350,0.136021,91155.0,91153.0,0.054822]
[1731787555142,0.054824,91150.0,91148.0,0.054825]
[1731787555449,0.054824,91150.0,91148.0,0.16452945]
[1731787556043,0.0812,91155.0,91152.0,0.054823]
[1731787556447,0.054822,91154.0,91152.0,0.054823]
[1731787561751,0.054822,91154.0,91152.0,0.10892803]
[1731787562763,0.054822,91154.0,91152.0,0.054823]
[1731787563259,0.136018,91160.0,91159.0,0.054819]
[1731787563863,0.054818,91160.0,91159.0,0.054819]
[1731787564163,0.16437705,91163.0,91149.0,0.19551518]
[1731787564351,0.52517705,91161.0,91150.0,0.01028575]
[1731787564660,0.054823,91153.0,91152.0,0.054823]
[1731787565159,0.054823,91153.0,91152.0,0.16452565]
[1731787566258,0.054823,91151.0,91150.0,0.10967939]
[1731787566451,0.054823,91151.0,91150.0,0.05485539]
[1731787566848,0.054826,91147.0,91146.0,0.19551518]
[1731787567260,0.054826,91147.0,91144.0,0.19551518]
[1731787567261,0.13144649,91147.0,91144.0,0.19551518]
[1731787567449,0.09349152,91150.0,91143.0,0.19551518]
[1731787567450,0.054827,91145.0,91143.0,0.19551518]
[1731787567649,0.054827,91145.0,91143.0,0.10970866]
[1731787568062,0.054829,91142.0,91141.0,0.0303]
[1731787568662,0.054829,91142.0,91141.0,0.14001649]
[1731787570067,0.054829,91142.0,91139.0,0.00164579]
[1731787570068,0.3608,91142.0,91139.0,0.00164579]
[1731787570266,0.05483,91140.0,91139.0,0.00164579]
[1731787570454,0.10817152,91140.0,91139.0,7.006e-05]
[1731787570767,0.10817152,91140.0,91139.0,2.99e-06]
[1731787570768,0.18937152,91140.0,91139.0,2.99e-06]
[1731787571363,0.18937152,91140.0,91139.0,0.05485838]
[1731787571552,0.3507659,91140.0,91139.0,0.05485838]
[1731787572062,0.40576684,91140.0,91139.0,0.05485838]
[1731787572465,0.19103094,91140.0,91139.0,0.05485838]
[1731787573061,0.40549677,91140.0,91139.0,0.05485838]
[1731787575456,0.24437584,91140.0,91139.0,0.05485838]
[1731787576867,0.38634408,91140.0,91139.0,0.05485539]
[1731787577164,0.10817263,91140.0,91139.0,0.05485539]
[1731787577366,0.05334263,91140.0,91139.0,0.16457729]
[1731787577574,0.05483,91141.0,91139.0,0.16457729]
[1731787577758,0.2189206,91141.0,91139.0,0.16457729]
[1731787577956,0.05483,91141.0,91139.0,0.16457729]
[1731787578255,0.13126158,91140.0,91139.0,0.16457729]
[1731787578455,0.18609159,91141.0,91139.0,0.05485539]
[1731787578772,0.05483,91141.0,91139.0,0.05485539]
[1731787586672,0.054835,91132.0,91131.0,0.0051]
[1731787586860,0.054838,91126.0,91124.0,0.0371]
[1731787587061,0.054838,91126.0,91124.0,0.032]
[1731787590084,0.054838,91126.0,91124.0,0.086839]
[1731787592283,0.14832952,91126.0,91124.0,0.032]
[1731787592479,0.14832952,91126.0,91119.0,0.19711321]
[1731787592480,0.054841,91121.0,91119.0,0.19711321]
[1731787593172,0.054843,91119.0,91118.0,0.19711321]
[1731787593680,0.054845,91116.0,91114.0,0.37056958]
[1731787594066,0.054845,91116.0,91114.0,0.10970039]
[1731787595582,0.054845,91116.0,91114.0,0.43642273]
[1731787595785,0.054845,91116.0,91115.0,0.32672234]
[1731787595973,0.054845,91116.0,91115.0,0.38157773]
[1731787596163,0.054845,91116.0,91115.0,0.05485539]
[1731787597068,0.054845,91116.0,91115.0,0.31764934]
[1731787597373,0.054845,91116.0,91115.0,0.31765024]
[1731787597770,0.054845,91116.0,91115.0,0.05485539]
[1731787597981,0.054845,91116.0,91115.0,0.31769952]
[1731787598369,0.054845,91116.0,91115.0,0.05485539]
[1731787599580,0.054845,91116.0,91115.0,0.25202001]
[1731787599768,0.054845,91116.0,91115.0,0.05485539]
[1731787603794,0.18609474,91116.0,91115.0,0.05485539]
[1731787603972,0.054845,91116.0,91115.0,0.05485539]
[1731787605776,0.18610051,91116.0,91115.0,0.05485539]
[1731787605992,0.14833652,91116.0,91115.0,0.05485539]
[1731787609470,0.14833652,91116.0,91103.0,0.0051]
[1731787609674,0.14833652,91116.0,91101.0,0.0313]
[1731787609675,0.054853,91102.0,91101.0,0.0313]
[1731787609973,0.054853,91102.0,91101.0,0.03136227]
[1731787613281,0.10962338,91102.0,91101.0,0.03136227]
[1731787616187,0.054853,91102.0,91101.0,0.03136227]
[1731787620289,0.054853,91102.0,91101.0,0.08621527]
[1731787621194,0.054853,91102.0,91101.0,0.03136227]
[1731787624392,0.054853,91102.0,91101.0,0.29422341]
[1731787624586,0.054853,91102.0,91101.0,0.03136227]
[1731787625495,0.18607153,91102.0,91101.0,0.03136227]
[1731787626397,0.054853,91102.0,91101.0,0.03136227]
[1731787628293,0.054853,91102.0,91101.0,0.228362]
[1731787628491,0.054853,91102.0,91101.0,0.03136227]
[1731787629204,0.054853,91102.0,91101.0,0.22865416]
[1731787629401,0.054853,91102.0,91101.0,0.03136227]
[1731787633696,0.054853,91102.0,91101.0,0.35808461]
[1731787634894,0.054853,91102.0,91101.0,0.03136227]
[1731787636092,0.18651884,91102.0,91101.0,0.03136227]
[1731787638794,0.18651884,91102.0,91101.0,6.227e-05]
[1731787639608,0.10821182,91102.0,91101.0,6.227e-05]
[1731787641501,0.10821191,91102.0,91101.0,6.227e-05]
[1731787642405,0.10821191,91102.0,91101.0,0.19758236]
[1731787642609,0.10821191,91102.0,91101.0,6.227e-05]
[1731787643700,0.10821191,91102.0,91101.0,0.19758504]
[1731787643899,0.10821191,91102.0,91101.0,6.227e-05]
[1731787644315,0.054853,91102.0,91101.0,6.227e-05]
[1731787644911,0.10821172,91102.0,91101.0,6.227e-05]
[1731787645096,0.054853,91102.0,91101.0,6.227e-05]
[1731787645498,0.10821122,91102.0,91101.0,6.227e-05]
[1731787645702,0.10821122,91102.0,91101.0,0.05491527]
[1731787646506,0.054853,91102.0,91101.0,0.34971951]
[1731787647516,0.054853,91102.0,91101.0,0.67899721]
[1731787647712,0.18656389,91102.0,91101.0,0.38419297]
[1731787648209,0.054853,91102.0,91101.0,0.67901649]
[1731787648607,0.18656389,91102.0,91101.0,0.67903696]
[1731787648909,0.054853,91102.0,91101.0,0.34973879]
[1731787649606,0.18656389,91102.0,91101.0,0.67903497]
[1731787650114,0.054853,91102.0,91101.0,0.34973879]
[1731787651103,0.054853,91102.0,91101.0,0.34971568]
[1731787652117,0.054853,91102.0,91101.0,0.67900413]
[1731787652506,0.054853,91102.0,91101.0,0.67897879]
[1731787653018,0.18656389,91102.0,91101.0,0.67897879]
[1731787653520,0.18656389,91102.0,91101.0,0.38420372]
[1731787654416,0.18656389,91102.0,91101.0,0.05491527]
[1731787654810,0.06149718,91107.0,91101.0,0.35606792]
[1731787654811,0.13171089,91107.0,91101.0,0.35606792]
[1731787655011,0.13171089,91107.0,91106.0,0.38411581]
[1731787655213,0.05485,91107.0,91106.0,0.38411581]
[1731787656118,0.05485,91107.0,91106.0,0.05485]
[1731787656419,0.05485,91107.0,91106.0,0.38411581]
[1731787656609,0.05485,91107.0,91106.0,0.05485]
[1731787658023,0.05485,91107.0,91106.0,0.38411581]
[1731787658209,0.05485,91107.0,91106.0,0.05485]
[1731787661526,0.05485,91107.0,91106.0,0.10891054]
[1731787661728,0.05485,91107.0,91106.0,0.30632692]
[1731787663213,0.05485,91107.0,91106.0,0.10891054]
[1731787666622,0.05485,91107.0,91106.0,0.05485]
[1731787669115,0.21948861,91107.0,91106.0,0.05485]
[1731787669316,0.21948861,91107.0,91104.0,0.19741638]
[1731787669317,0.054851,91105.0,91104.0,0.19741638]
[1731787669820,0.054851,91105.0,91104.0,0.054851]
[1731787672020,0.13160093,91116.0,91113.0,0.054846]
[1731787672327,0.13324774,91121.0,91120.0,0.054842]
[1731787672629,0.13322638,91121.0,91120.0,0.054842]
[1731787672836,0.00164692,91121.0,91120.0,0.1266286]
[1731787673131,0.00164692,91121.0,91120.0,0.20579548]
[1731787673334,0.00164692,91121.0,91120.0,0.53503548]
[1731787673532,0.00164692,91121.0,91120.0,0.58922774]
[1731787673936,0.00164692,91121.0,91120.0,0.25998774]
[1731787674534,0.13157946,91133.0,91132.0,0.054835]
[1731787674723,0.13157946,91137.0,91132.0,0.054835]
[1731787674928,0.60930665,91140.0,91139.0,0.054831]
[1731787675134,0.47712718,91140.0,91139.0,0.054831]
[1731787680433,0.47712718,91140.0,91135.0,0.054833]
[1731787680434,0.054833,91136.0,91135.0,0.054833]
[1731787680635,0.12299436,91136.0,91128.0,0.00566]
[1731787680837,0.12299436,91136.0,91123.0,0.0051]
[1731787680838,0.05484,91124.0,91123.0,0.0051]
[1731787681038,0.05484,91124.0,91121.0,0.054841]
[1731787681039,0.06149718,91124.0,91121.0,0.054841]
[1731787681230,0.054841,91122.0,91121.0,0.054841]
[1731787681427,0.054841,91122.0,91117.0,0.30651883]
[1731787681428,0.05484,91123.0,91117.0,0.19679693]
[1731787681627,0.06149718,91124.0,91118.0,0.19679693]
[1731787681628,0.054842,91120.0,91118.0,0.19679693]
[1731787682032,0.054842,91120.0,91119.0,0.054843]
[1731787682331,0.054842,91120.0,91119.0,0.25163993]
[1731787683248,0.054842,91120.0,91119.0,0.054843]
[1731787683735,0.054842,91120.0,91119.0,0.25163993]
[1731787684132,0.054842,91120.0,91119.0,0.054843]
[1731787684336,0.18631022,91120.0,91119.0,0.054843]
[1731787684926,0.18614044,91120.0,91119.0,0.054843]
[1731787685733,0.054842,91120.0,91119.0,0.054843]
[1731787686148,0.1861395,91120.0,91119.0,0.054843]
[1731787686441,0.054842,91120.0,91119.0,0.054843]
[1731787686836,0.18614627,91120.0,91119.0,0.054843]
[1731787687445,0.054842,91120.0,91119.0,0.054843]
[1731787687839,0.054842,91120.0,91113.0,0.0307]
[1731787688039,0.1313088,91119.0,91118.0,0.054843]
[1731787688235,0.054842,91120.0,91118.0,0.054843]
[1731787688442,0.1861508,91120.0,91118.0,0.054843]
[1731787688833,0.054842,91120.0,91118.0,0.054843]
[1731787689033,0.054842,91120.0,91113.0,0.0307]
[1731787689034,0.1313088,91121.0,91113.0,0.0307]
[1731787689348,0.06149718,91170.0,91119.0,0.054842]
[1731787689349,0.054841,91122.0,91119.0,0.054842]
[1731787689539,0.1861508,91121.0,91119.0,0.054842]
[1731787689744,0.054842,91121.0,91119.0,0.054842]
[1731787690047,0.08587483,91128.0,91119.0,0.054842]
[1731787690048,0.1313088,91123.0,91119.0,0.054842]
[1731787690244,0.054842,91120.0,91119.0,0.054842]
[1731787691047,0.1313088,91123.0,91119.0,0.10974418]
[1731787691235,0.1861488,91124.0,91121.0,0.06149718]
[1731787691436,0.1861488,91124.0,91123.0,0.05484]
[1731787691645,0.05484,91124.0,91123.0,0.05484]
[1731787691849,0.16527861,91129.0,91121.0,0.06149718]
[1731787692034,0.054836,91130.0,91121.0,0.06149718]
[1731787692035,0.13131855,91128.0,91121.0,0.06149718]
[1731787692236,0.08348,91134.0,91127.0,0.06149718]
[1731787692440,0.138314,91134.0,91133.0,0.11633118]
[1731787692640,0.138314,91134.0,91133.0,0.054834]
[1731787692848,0.138314,91134.0,91133.0,0.25166423]
[1731787693252,0.138314,91134.0,91133.0,0.054834]
[1731787693548,0.138314,91134.0,91133.0,0.25165809]
[1731787693748,0.138314,91134.0,91133.0,0.054834]
[1731787694149,0.138314,91134.0,91133.0,0.25165747]
[1731787694451,0.054834,91134.0,91133.0,0.25165747]
[1731787694856,0.054834,91134.0,91133.0,0.054834]
[1731787697657,0.054834,91134.0,91133.0,0.25166719]
[1731787697854,0.054834,91134.0,91127.0,0.26243966]
[1731787697855,0.06149718,91134.0,91132.0,0.19683319]
[1731787698154,0.054838,91126.0,91125.0,0.19683319]
[1731787698359,0.054838,91126.0,91118.0,0.19683319]
[1731787698360,0.054843,91119.0,91118.0,0.19683319]
[1731787698560,0.06149718,91121.0,91117.0,0.19683319]
[1731787698948,0.06149718,91121.0,91108.0,0.06087337]
[1731787698949,0.054844,91117.0,91116.0,0.19683319]
[1731787699356,0.054846,91114.0,91113.0,0.05485539]
[1731787699562,0.18622274,91114.0,91113.0,0.05485539]
[1731787699947,0.06149718,91121.0,91109.0,0.054848]
[1731787699948,0.16463861,91118.0,91109.0,0.054848]
[1731787700149,0.054848,91110.0,91109.0,0.054848]
[1731787700349,0.054848,91110.0,91103.0,0.06659718]
[1731787700350,0.13138017,91111.0,91103.0,0.0051]
[1731787700550,0.13138017,91111.0,91106.0,0.01029066]
[1731787700748,0.24772635,91108.0,91107.0,0.01029066]
[1731787700951,0.19287735,91108.0,91103.0,0.19683319]
[1731787701151,0.054852,91103.0,91102.0,0.0332]
[1731787701361,0.11634918,91103.0,91102.0,0.0332]
[1731787701861,0.11634918,91103.0,91102.0,0.04214]
[1731787707664,0.054852,91103.0,91102.0,0.04214]
[1731787708261,0.10929602,91103.0,91102.0,0.04214]
[1731787708456,0.59309038,91103.0,91102.0,0.00894]
[1731787708657,0.5315932,91103.0,91102.0,0.00894]
[1731787709666,0.5315932,91103.0,91100.0,0.1]
[1731787709667,0.054853,91102.0,91100.0,0.1]
[1731787709865,0.054853,91101.0,91100.0,0.1]
[1731787710860,0.14860761,91101.0,91084.0,0.1119717]
[1731787711156,0.14860761,91101.0,91079.0,0.10976888]
[1731787711157,0.3608,91085.0,91079.0,0.10976888]
[1731787711362,0.054866,91081.0,91079.0,0.10976888]
[1731787711564,0.054866,91081.0,91078.0,0.26247633]
[1731787711868,0.054866,91081.0,91076.0,0.054868]
[1731787711869,0.054866,91081.0,91079.0,0.10977852]
[1731787712262,0.054866,91081.0,91078.0,0.054867]
[1731787712570,0.3608,91085.0,91078.0,0.10979358]
[1731787712764,0.3608,91103.0,91082.0,0.26247633]
[1731787712968,0.054852,91104.0,91099.0,0.09375461]
[1731787713273,0.054852,91103.0,91100.0,0.095]
[1731787713457,0.00012158,91107.0,91100.0,0.14992162]
[1731787713661,0.00012158,91107.0,91102.0,0.054853]
[1731787714172,0.00012158,91107.0,91102.0,0.10977462]
[1731787714371,0.054852,91103.0,91102.0,0.10977462]
[1731787715364,0.18623217,91103.0,91102.0,0.10977462]
[1731787715665,0.054852,91103.0,91102.0,0.10977462]
[1731787715859,0.13150175,91107.0,91102.0,0.05492162]
[1731787716066,0.13150175,91107.0,91106.0,0.05485]
[1731787716275,0.00012158,91107.0,91106.0,0.05690528]
[1731787716464,0.00012158,91107.0,91106.0,0.05492162]
[1731787717473,0.05497158,91107.0,91106.0,0.10977162]